bitfinex-derivatives/quotes_SOLF0:USTF0_20250113
["timestamp","ask_amount","ask_price","bid_price","bid_amount"]
[1736771902644,36.27889521,175.78,175.72,25.9914688]
[1736771903148,2.848,175.76,175.72,23.4496688]
[1736771903647,2.848,175.76,175.7,2.849]
[1736771903848,36.27889521,175.78,175.68,23.4496688]
[1736771904546,36.27889521,175.75,175.68,23.4496688]
[1736771904749,36.27889521,175.75,175.66,2.8496]
[1736771904941,39.12719521,175.75,175.65,25.8844688]
[1736771905151,7.3,175.77,175.65,25.8844688]
[1736771905852,7.44,175.84,175.7,36.27889521]
[1736771906041,2.847,175.83,175.71,2.6884]
[1736771906246,2.847,175.83,175.71,8.578815]
[1736771906547,7.46,175.85,175.71,8.578815]
[1736771906748,10.3066,175.85,175.72,5.55315106]
[1736771906947,7.46,175.85,175.73,36.27889521]
[1736771907445,7.46,175.85,175.74,25.9536688]
[1736771907647,43.71889521,175.87,175.74,25.9536688]
[1736771907851,7.44,175.87,175.75,2.5407]
[1736771908351,7.44,175.87,175.75,53.76522052]
[1736771908652,7.44,175.87,175.78,2.8473]
[1736771908849,7.44,175.87,175.75,53.76522052]
[1736771909260,43.71889521,175.87,175.76,23.4496688]
[1736771909857,2.8469,175.82,175.76,23.4496688]
[1736771910165,36.27889521,175.84,175.75,2.5407]
[1736771910362,36.27889521,175.86,175.75,2.5407]
[1736771910363,36.27889521,175.81,175.75,2.5407]
[1736771910659,36.27889521,175.81,175.74,2.504]
[1736771910660,36.27889521,175.81,175.73,23.4496688]
[1736771911256,36.27889521,175.86,175.71,31.2439381]
[1736771911257,36.27889521,175.78,175.71,31.2439381]
[1736771911565,7.48,175.77,175.71,31.2439381]
[1736771912061,7.48,175.77,175.68,5.2531]
[1736771912263,7.48,175.77,175.76,2.8477]
[1736771912463,7.48,175.77,175.68,5.2531]
[1736771912959,2.8468,175.82,175.77,2.8476]
[1736771913155,7.48,175.83,175.7,7.7942693]
[1736771913359,7.48,175.83,175.7,44.07316451]
[1736771913565,7.48,175.83,175.7,36.27889521]
[1736771913766,36.27889521,175.88,175.7,36.27889521]
[1736771914066,7.5,175.87,175.7,36.27889521]
[1736771914256,36.27889521,175.85,175.71,5.89557321]
[1736771914464,36.27889521,175.85,175.77,2.8476]
[1736771914959,7.5,175.87,175.72,5.89557321]
[1736771915160,36.27889521,175.85,175.72,5.89557321]
[1736771915464,2.8468,175.82,175.77,2.8474]
[1736771916057,36.27889521,175.85,175.72,7.7942693]
[1736771916262,7.5,175.87,175.72,7.7942693]
[1736771916564,2.8465,175.84,175.79,2.8471]
[1736771916960,7.5,175.87,175.73,19.15739665]
[1736771917160,7.5,175.87,175.74,2.6524]
[1736771917663,2.8466,175.84,175.78,2.8473]
[1736771917862,2.8466,175.84,175.74,2.6524]
[1736771918051,97.68,175.91,175.74,38.93129521]
[1736771918052,133.95889521,175.91,175.74,38.93129521]
[1736771918258,7.6,175.92,175.77,36.27889521]
[1736771918460,194.0,176.01,175.8,36.27889521]
[1736771918760,7.6,175.95,175.83,36.27889521]
[1736771918963,7.6,175.95,175.84,2.6524]
[1736771919263,39.12309521,175.98,175.84,2.6524]
[1736771919460,36.27889521,175.98,175.84,2.6524]
[1736771919660,36.27889521,175.98,175.85,13.70381065]
[1736771919862,2.845,175.93,175.88,2.8458]
[1736771920261,36.27889521,175.95,175.85,13.70381065]
[1736771920466,36.27889521,175.95,175.85,7.7942693]
[1736771920761,36.27889521,175.92,175.87,7.7942693]
[1736771920955,2.8454,175.91,175.87,7.7942693]
[1736771921156,36.27889521,175.92,175.87,7.7942693]
[1736771921353,36.27889521,175.95,175.84,10.4466693]
[1736771921562,2.845,175.93,175.88,2.8457]
[1736771921763,36.27889521,175.95,175.84,10.4466693]
[1736771922263,43.89889521,175.98,175.87,7.7942693]
[1736771922453,43.89889521,175.98,175.88,5.0117]
[1736771922653,43.89889521,175.98,175.88,10.92391411]
[1736771922860,7.62,175.98,175.88,10.92391411]
[1736771923361,7.62,176.0,175.9,31.2439381]
[1736771923759,2.8443,175.98,175.93,2.8448]
[1736771924052,7.62,176.0,175.92,7.7942693]
[1736771924253,36.27889521,175.98,175.92,7.7942693]
[1736771924453,2.845,175.93,175.92,7.7942693]
[1736771924665,36.27889521,175.95,175.92,7.7942693]
[1736771925064,36.27889521,175.95,175.88,7.8573]
[1736771925260,36.27889521,175.95,175.88,5.0117]
[1736771925460,2.8453,175.92,175.88,5.0117]
[1736771925657,36.27889521,175.95,175.87,31.2439381]
[1736771926259,36.27889521,175.95,175.86,2.8461]
[1736771926260,2.8458,175.88,175.85,7.7942693]
[1736771926772,43.89889521,175.89,175.85,7.7942693]
[1736771926971,39.12499521,175.86,175.85,7.7942693]
[1736771927270,36.27889521,175.86,175.79,31.2439381]
[1736771927473,2.8465,175.84,175.79,34.0911381]
[1736771927970,2.8465,175.84,175.79,2.8472]
[1736771928170,36.27889521,175.86,175.79,2.8472]
[1736771928375,2.8463,175.85,175.76,12.7204693]
[1736771928566,36.27889521,175.89,175.76,12.7204693]
[1736771928763,7.6,175.92,175.8,36.27889521]
[1736771929072,43.87889521,175.95,175.8,36.27889521]
[1736771929777,43.87889521,175.95,175.81,19.22794482]
[1736771930176,43.87889521,175.95,175.82,2.6863]
[1736771930676,43.87889521,175.95,175.83,37.17344322]
[1736771931374,43.87889521,175.95,175.83,31.2439381]
[1736771931575,7.6,175.95,175.83,31.2439381]
[1736771931771,7.6,175.95,175.84,5.94749738]
[1736771931973,2.8449,175.94,175.87,2.8459]
[1736771932276,7.6,175.95,175.82,33.9302381]
[1736771932777,2.845,175.93,175.83,5.95187253]
[1736771932974,7.6,175.95,175.83,5.95187253]
[1736771933272,36.27889521,175.98,175.92,2.8451]
[1736771933571,7.56,176.0,175.86,36.27889521]
[1736771933773,7.56,176.0,175.87,5.0465]
[1736771933970,2.8446,175.96,175.87,5.0465]
[1736771934166,36.27889521,176.01,175.87,5.0465]
[1736771934471,7.56,176.0,175.87,5.0465]
[1736771934676,7.56,176.0,175.88,5.95626744]
[1736771935178,36.27889521,175.98,175.88,5.95626744]
[1736771935383,36.27889521,175.95,175.87,5.0465]
[1736771935677,2.8452,175.92,175.89,5.95816105]
[1736771936272,36.27889521,175.95,175.87,5.0465]
[1736771936475,36.27889521,175.98,175.87,5.0465]
[1736771936674,36.27889521,176.01,175.88,5.95879756]
[1736771936879,2.8442,175.98,175.94,2.8447]
[1736771937277,36.27889521,176.01,175.87,12.90472306]
[1736771937478,36.27889521,176.04,175.91,36.27889521]
[1736771937678,36.27889521,176.07,175.92,2.4602]
[1736771937973,2.8431,176.05,175.97,2.8442]
[1736771938173,36.27889521,176.04,175.92,8.41631162]
[1736771938377,36.27889521,176.01,175.93,5.1029]
[1736771938583,2.844,175.99,175.95,2.8446]
[1736771938878,36.27889521,176.01,175.93,11.05901162]
[1736771939179,2.8442,175.98,175.94,2.8447]
[1736771939584,7.56,176.0,175.93,5.1029]
[1736771939780,2.8445,175.97,175.92,2.8451]
[1736771940081,7.56,176.0,175.89,2.5241]
[1736771940273,2.8451,175.93,175.89,5.3697]
[1736771940677,36.27889521,175.95,175.88,7.85822306]
[1736771940879,36.27889521,175.95,175.91,2.8452]
[1736771941079,36.27889521,175.95,175.87,28.5918692]
[1736771941080,36.27889521,175.95,175.87,5.0172]
[1736771941480,2.845,175.94,175.87,5.0172]
[1736771941680,36.27889521,175.95,175.87,5.0172]
[1736771942082,36.27889521,175.95,175.88,5.95708622]
[1736771942283,36.27889521,175.92,175.88,5.95708622]
[1736771942584,36.27889521,175.89,175.84,31.43289226]
[1736771943684,36.27889521,175.89,175.8,10.51852306]
[1736771943986,7.54,175.91,175.8,10.51852306]
[1736771944378,7.54,175.91,175.88,2.8457]
[1736771944579,7.54,175.91,175.81,5.96372953]
[1736771944879,7.54,175.91,175.9,2.8455]
[1736771945081,7.52,175.97,175.82,36.27889521]
[1736771945289,36.27889521,175.95,175.8,2.6603]
[1736771945481,36.27889521,175.92,175.83,5.96261931]
[1736771945883,36.27889521,175.95,175.83,5.96261931]
[1736771946084,7.52,175.96,175.82,7.85822306]
[1736771946280,7.52,175.96,175.84,36.27889521]
[1736771946480,2.8442,175.98,175.94,2.8448]
[1736771946875,36.27889521,176.01,175.87,36.27889521]
[1736771947080,7.52,176.02,175.9,36.27889521]
[1736771947282,7.52,176.02,175.88,7.6714]
[1736771947483,36.27889521,175.98,175.88,7.6714]
[1736771947788,36.27889521,175.98,175.89,5.95607965]
[1736771948088,2.8445,175.97,175.93,2.8449]
[1736771948788,36.27889521,175.95,175.88,7.6714]
[1736771948989,7.52,175.94,175.86,7.85822306]
[1736771949189,2.846,175.87,175.86,7.85822306]
[1736771949491,36.27889521,175.89,175.82,31.43289226]
[1736771949691,36.27889521,175.92,175.82,31.43289226]
[1736771949879,7.52,175.94,175.83,5.96375613]
[1736771950384,7.52,175.94,175.84,5.96375613]
[1736771950585,7.52,175.94,175.85,2.563]
[1736771950889,7.52,175.94,175.86,5.96375613]
[1736771951287,7.52,175.94,175.85,2.563]
[1736771951587,7.52,175.94,175.81,53.54439287]
[1736771951588,36.27889521,175.92,175.81,53.54439287]
[1736771951782,36.27889521,175.92,175.81,31.43289226]
[1736771951984,2.8459,175.88,175.81,31.43289226]
[1736771952486,36.27889521,175.89,175.81,31.43289226]
[1736771952690,36.27889521,175.85,175.82,5.97088803]
[1736771952988,36.27889521,175.85,175.79,7.85822306]
[1736771953188,2.8471,175.8,175.79,7.85822306]
[1736771953580,2.8469,175.81,175.79,7.85822306]
[1736771953788,36.27889521,175.82,175.79,7.85822306]
[1736771953987,36.27889521,175.85,175.72,31.43289226]
[1736771954189,133.95889521,175.95,175.72,31.43289226]
[1736771954190,36.27889521,175.88,175.72,31.43289226]
[1736771954395,43.75889521,175.91,175.74,36.27889521]
[1736771954689,2.8457,175.89,175.84,2.8465]
[1736771954892,7.48,175.93,175.77,36.27889521]
[1736771955394,2.8456,175.9,175.84,2.8463]
[1736771955783,2.8456,175.9,175.82,2.8467]
[1736771955983,7.48,175.93,175.79,7.85822306]
[1736771956192,36.27889521,175.89,175.79,7.85822306]
[1736771956391,36.27889521,175.92,175.85,2.8462]
[1736771956595,2.8453,175.92,175.8,41.47819521]
[1736771956886,7.48,175.93,175.85,2.8462]
[1736771957092,2.8455,175.9,175.8,5.1993]
[1736771957488,36.27889521,175.92,175.8,5.1993]
[1736771957687,2.8461,175.87,175.8,5.1993]
[1736771958195,36.27889521,175.89,175.83,2.8466]
[1736771958494,39.12459521,175.89,175.8,5.1993]
[1736771958693,39.12459521,175.89,175.85,2.8463]
[1736771959494,7.48,175.93,175.8,41.47819521]
[1736771960196,2.8456,175.9,175.85,2.8461]
[1736771960393,7.48,175.93,175.8,41.47819521]
[1736771960696,36.27889521,175.92,175.8,5.1993]
[1736771961493,36.27889521,175.89,175.8,5.1993]
[1736771961995,2.8466,175.84,175.8,5.1993]
[1736771962193,7.48,175.93,175.8,5.1993]
[1736771962194,36.27889521,175.86,175.8,5.1993]
[1736771962593,2.8468,175.83,175.8,5.1993]
[1736771962794,2.8468,175.83,175.8,2.5674]
[1736771962995,2.8468,175.83,175.78,5.354]
[1736771963391,36.27889521,175.86,175.75,5.2961]
[1736771963699,36.27889521,175.83,175.75,5.2961]
[1736771963895,43.75889521,175.83,175.75,5.2961]
[1736771964897,7.48,175.83,175.75,5.2961]
[1736771965297,10.3267,175.83,175.75,5.2961]
[1736771965501,7.48,175.83,175.75,5.2961]
[1736771965798,7.48,175.83,175.79,2.8472]
[1736771966294,7.48,175.83,175.75,5.2961]
[1736771966707,36.27889521,175.92,175.77,36.27889521]
[1736771966892,7.44,175.91,175.77,36.27889521]
[1736771967405,36.27889521,175.89,175.75,5.2961]
[1736771967602,2.8467,175.83,175.76,7.85822306]
[1736771967899,36.27889521,175.89,175.76,7.85822306]
[1736771968105,2.8463,175.86,175.79,2.8472]
[1736771968303,36.27889521,175.89,175.75,5.2961]
[1736771968795,2.8466,175.84,175.79,2.8472]
[1736771969303,36.27889521,175.89,175.75,5.2961]
[1736771969603,7.44,175.91,175.75,5.2961]
[1736771969604,7.44,175.91,175.77,36.27889521]
[1736771969903,2.846,175.87,175.82,2.8467]
[1736771970098,7.44,175.91,175.82,2.8467]
[1736771970403,7.44,175.91,175.77,36.27889521]
[1736771970703,2.8463,175.86,175.81,2.8469]
[1736771971203,7.44,175.91,175.81,2.8469]
[1736771971398,36.27889521,175.92,175.82,2.8468]
[1736771971604,2.8461,175.87,175.82,2.8468]
[1736771971797,7.4,175.91,175.82,2.8468]
[1736771972103,2.8467,175.83,175.75,5.2961]
[1736771972300,36.27889521,175.86,175.75,5.2961]
[1736771972502,36.27889521,175.86,175.75,16.00222306]
[1736771972806,2.8472,175.8,175.75,16.00222306]
[1736771973000,36.27889521,175.86,175.75,16.00222306]
[1736771973302,36.27889521,175.86,175.75,13.15432306]
[1736771973496,2.8476,175.79,175.75,5.2961]
[1736771974095,43.67889521,175.83,175.72,10.32702306]
[1736771974400,36.27889521,175.8,175.71,7.85822306]
[1736771974701,2.8478,175.78,175.72,2.8486]
[1736771974898,43.67889521,175.83,175.71,7.85822306]
[1736771975201,43.67889521,175.83,175.7,0.21063]
[1736771975601,2.8478,175.78,175.73,2.8485]
[1736771975903,43.67889521,175.83,175.69,4.9625]
[1736771976303,2.8476,175.79,175.69,36.39539226]
[1736771977198,2.8476,175.79,175.7,59.10443896]
[1736771977405,43.67889521,175.83,175.7,59.10443896]
[1736771977599,2.8479,175.77,175.7,59.10443896]
[1736771977897,43.67889521,175.83,175.71,2.8487]
[1736771978100,2.8487,175.72,175.7,7.85822306]
[1736771978305,36.27889521,175.77,175.7,7.85822306]
[1736771978702,2.8482,175.75,175.7,7.85822306]
[1736771978902,36.27889521,175.77,175.69,2.4253]
[1736771979102,36.27889521,175.77,175.67,3.07499]
[1736771979406,43.67889521,175.83,175.68,36.27889521]
[1736771979903,2.8476,175.79,175.68,36.27889521]
[1736771980401,43.67889521,175.83,175.68,36.27889521]
[1736771980602,36.27889521,175.8,175.67,0.22559]
[1736771981006,2.8485,175.73,175.69,2.8491]
[1736771981497,36.27889521,175.8,175.67,0.22559]
[1736771981699,2.8489,175.71,175.67,0.22559]
[1736771981897,36.27889521,175.77,175.67,0.22559]
[1736771982602,43.67889521,175.8,175.67,0.22559]
[1736771983303,2.8485,175.74,175.67,0.22559]
[1736771983704,2.8486,175.73,175.69,2.849]
[1736771984007,43.67889521,175.8,175.69,2.849]
[1736771984402,2.8487,175.72,175.69,2.849]
[1736771984706,36.27889521,175.8,175.67,0.22559]
[1736771984906,43.65889521,175.8,175.67,0.22559]
[1736771985508,36.27889521,175.77,175.67,0.22559]
[1736771985806,2.8487,175.72,175.67,0.22559]
[1736771986104,43.65889521,175.8,175.67,0.22559]
[1736771986300,2.8481,175.76,175.72,2.8486]
[1736771986509,36.27889521,175.83,175.67,0.22559]
[1736771986702,7.38,175.82,175.69,36.27889521]
[1736771986899,7.38,175.82,175.7,2.6592]
[1736771987102,36.27889521,175.8,175.7,2.6592]
[1736771987411,7.38,175.82,175.7,2.6592]
[1736771987908,2.8478,175.78,175.7,2.6592]
[1736771988105,7.38,175.82,175.7,2.6592]
[1736771988509,2.8479,175.77,175.73,2.8484]
[1736771988905,2.8479,175.77,175.7,2.6592]
[1736771989100,2.8479,175.77,175.74,2.8483]
[1736771989607,2.8477,175.79,175.7,2.6592]
[1736771989909,7.38,175.82,175.7,2.6592]
[1736771990305,2.8483,175.75,175.71,2.8488]
[1736771990609,7.38,175.82,175.7,2.6592]
[1736771991205,2.8481,175.76,175.72,2.8485]
[1736771992212,36.27889521,175.8,175.71,2.8488]
[1736771992813,7.38,175.82,175.7,2.6592]
[1736771993216,2.8479,175.77,175.73,2.8484]
[1736771993712,133.99889521,175.86,175.7,2.6592]
[1736771993914,2.8473,175.81,175.77,2.8477]
[1736771994116,7.32,175.85,175.73,5.0501]
[1736771994413,133.99889521,175.86,175.77,2.8478]
[1736771994414,2.8473,175.81,175.77,2.8478]
[1736771995515,7.3,175.84,175.77,2.8478]
[1736771995717,36.27889521,175.83,175.75,2.8481]
[1736771995915,36.27889521,175.83,175.73,5.0501]
[1736771996313,36.27889521,175.8,175.7,34.09209226]
[1736771996911,36.27889521,175.8,175.7,2.6592]
[1736771997315,2.8485,175.74,175.7,5.5082]
[1736771998225,2.8486,175.73,175.7,5.5082]
[1736771998518,36.27889521,175.83,175.7,2.6592]
[1736771998719,2.8476,175.79,175.7,2.6592]
[1736771999221,2.8476,175.79,175.75,2.8481]
[1736771999524,141.27889521,175.86,175.72,36.27889521]
[1736771999717,141.27889521,175.86,175.77,2.8478]
[1736772000423,141.27889521,175.86,175.78,2.8477]
[1736772000923,141.27889521,175.86,175.72,36.27889521]
[1736772001223,141.27889521,175.86,175.71,7.85822306]
[1736772001421,36.27889521,175.83,175.71,7.85822306]
[1736772001623,36.27889521,175.83,175.73,2.8484]
[1736772001829,36.27889521,175.83,175.71,7.85822306]
[1736772002021,2.8481,175.76,175.7,2.6592]
[1736772002223,7.28,175.78,175.68,7.85822306]
[1736772002523,2.8485,175.74,175.68,7.85822306]
[1736772002719,2.8485,175.74,175.7,2.8489]
[1736772002925,7.28,175.78,175.67,12.90832306]
[1736772003123,7.28,175.78,175.69,36.27889521]
[1736772003335,43.55889521,175.86,175.72,36.27889521]
[1736772003823,7.28,175.87,175.75,36.27889521]
[1736772004018,7.28,175.87,175.76,4.9971]
[1736772004426,2.8469,175.83,175.79,2.8475]
[1736772004627,36.27889521,175.89,175.76,4.9971]
[1736772004834,2.8464,175.87,175.83,2.8468]
[1736772005130,7.26,175.94,175.81,36.27889521]
[1736772005328,36.27889521,175.95,175.82,2.4461]
[1736772005524,254.51038406,176.03,175.82,2.4461]
[1736772005525,2.8454,175.93,175.82,2.4461]
[1736772005725,7.26,175.97,175.84,36.27889521]
[1736772005924,36.27889521,175.98,175.85,5.1474]
[1736772006123,7.28,175.98,175.87,36.27889521]
[1736772006530,7.28,175.98,175.92,2.8454]
[1736772007224,2.8444,175.99,175.93,2.8452]
[1736772007426,2.8442,176.0,175.9,36.27889521]
[1736772007725,97.76,176.03,175.91,2.5787]
[1736772008430,43.55889521,176.04,175.91,2.5787]
[1736772009326,36.27889521,176.01,175.89,31.43289226]
[1736772009630,36.27889521,175.98,175.89,31.43289226]
[1736772009834,2.845,175.95,175.89,31.43289226]
[1736772010129,36.27889521,175.98,175.88,2.8461]
[1736772010331,2.845,175.95,175.86,2.5787]
[1736772010525,36.27889521,175.98,175.86,2.5787]
[1736772010929,2.845,175.95,175.9,2.8458]
[1736772011234,36.27889521,175.98,175.86,2.5787]
[1736772011631,2.8452,175.94,175.88,2.8459]
[1736772011828,36.27889521,176.01,175.86,2.5787]
[1736772012230,36.27889521,176.01,175.87,36.27889521]
[1736772012934,2.8447,175.97,175.87,36.27889521]
[1736772013136,36.27889521,176.01,175.87,36.27889521]
[1736772013434,2.8454,175.93,175.88,2.846]
[1736772013829,36.27889521,175.98,175.85,5.1474]
[1736772014035,36.27889521,175.95,175.85,5.1474]
[1736772014331,36.27889521,175.92,175.8,33.96019226]
[1736772014527,36.27889521,175.92,175.81,2.8472]
[1736772015135,36.27889521,175.92,175.82,2.8469]
[1736772015432,36.27889521,175.92,175.8,2.5273]
[1736772016237,2.8462,175.88,175.83,2.8468]
[1736772016537,7.28,175.93,175.8,2.5273]
[1736772016730,36.27889521,175.95,175.8,2.5273]
[1736772016927,7.28,175.96,175.8,2.5273]
[1736772017330,2.8455,175.92,175.8,2.5273]
[1736772017937,36.27889521,175.92,175.8,2.5273]
[1736772018133,36.27889521,175.92,175.81,5.84668186]
[1736772018637,36.27889521,175.92,175.8,2.5273]
[1736772018935,7.28,175.96,175.8,2.5273]
[1736772019137,2.8458,175.91,175.84,2.8466]
[1736772019341,36.27889521,175.92,175.8,2.5273]
[1736772019529,7.28,175.96,175.8,2.5273]
[1736772019530,36.27889521,175.95,175.8,2.5273]
[1736772019729,2.8456,175.92,175.87,2.8461]
[1736772019933,36.27889521,175.95,175.87,2.8461]
[1736772020240,7.3,175.94,175.8,2.5273]
[1736772020738,2.8458,175.91,175.86,2.8463]
[1736772020930,7.3,175.94,175.86,2.8463]
[1736772021140,7.3,175.94,175.8,2.5273]
[1736772021437,36.27889521,175.92,175.8,2.5273]
[1736772021837,2.8462,175.88,175.8,2.5273]
[1736772022039,7.3,175.94,175.8,2.5273]
[1736772022233,43.55889521,175.95,175.8,2.5273]
[1736772022633,43.55889521,175.95,175.8,10.38552306]
[1736772022829,2.8462,175.88,175.83,2.8468]
[1736772023037,36.27889521,175.92,175.8,10.38552306]
[1736772023230,17.09,175.77,175.5,308.9087522]
[1736772023540,36.27889521,175.57,175.55,235.26328689]
[1736772023744,36.27889521,175.62,175.55,235.26328689]
[1736772023937,8.24,175.76,175.55,271.5421821]
[1736772024135,387.80168006,175.68,175.62,36.27889521]
[1736772024441,387.80168006,175.68,175.64,2.8499]
[1736772024636,325.80168006,175.68,175.62,36.27889521]
[1736772024841,397.80533669,175.67,175.66,36.27889521]
[1736772025044,389.64093669,175.67,175.66,36.27889521]
[1736772025541,71.4624521,175.67,175.66,36.27889521]
[1736772025837,2.5188,175.8,175.66,72.55779042]
[1736772026037,2.5188,175.8,175.66,36.27889521]
[1736772026244,2.5188,175.8,175.7,16.48567002]
[1736772026443,2.5188,175.8,175.66,36.27889521]
[1736772026638,2.5188,175.8,175.69,36.27889521]
[1736772026837,2.5188,175.8,175.73,2.8485]
[1736772027033,2.5188,175.8,175.69,36.27889521]
[1736772027237,2.5188,175.8,175.72,2.8487]
[1736772027541,4.9804,175.85,175.72,36.27889521]
[1736772027843,7.4992,175.85,175.75,2.8481]
[1736772028042,7.4992,175.85,175.72,36.27889521]
[1736772028838,7.4992,175.85,175.68,36.27889521]
[1736772029038,36.27889521,175.83,175.68,36.27889521]
[1736772029236,7.4992,175.85,175.68,36.27889521]
[1736772029445,7.4992,175.85,175.63,97.72]
[1736772029446,7.4992,175.85,175.71,36.27889521]
[1736772029645,7.4992,175.85,175.77,2.8478]
[1736772029841,7.4992,175.85,175.74,36.27889521]
[1736772030041,4.9804,175.85,175.68,8.24]
[1736772030340,4.9804,175.85,175.76,36.27889521]
[1736772030540,4.9804,175.85,175.73,36.27889521]
[1736772031545,4.9804,175.85,175.7,36.27889521]
[1736772032345,2.8471,175.82,175.71,2.8487]
[1736772032542,41.25929521,175.85,175.71,2.8487]
[1736772032543,2.5185,175.81,175.71,2.8487]
[1736772032841,2.5185,175.81,175.67,36.27889521]
[1736772033149,2.5185,175.81,175.7,36.27889521]
[1736772033939,2.5185,175.81,175.68,36.27889521]
[1736772034349,2.5185,175.81,175.65,3.898]
[1736772034350,2.5185,175.81,175.65,36.27889521]
[1736772034646,36.27889521,175.79,175.65,36.27889521]
[1736772034941,8.18,175.78,175.65,36.27889521]
[1736772035347,8.18,175.78,175.65,22.42259182]
[1736772035547,2.848,175.77,175.67,2.8494]
[1736772035847,2.848,175.77,175.65,22.42259182]
[1736772036049,5.2918,175.76,175.64,22.42259182]
[1736772037247,5.2918,175.76,175.68,2.8493]
[1736772037446,8.1399,175.76,175.68,2.8493]
[1736772037649,5.2918,175.76,175.67,36.44057083]
[1736772037844,2.6534,175.76,175.7,36.44057083]
[1736772038045,2.5185,175.81,175.7,36.44057083]
[1736772038245,5.3658,175.81,175.7,36.44057083]
[1736772038446,2.5185,175.81,175.7,36.44057083]
[1736772038647,2.5185,175.81,175.72,2.8487]
[1736772038950,2.5185,175.81,175.7,36.44057083]
[1736772039651,2.5185,175.81,175.67,36.44057083]
[1736772040048,36.44057083,175.79,175.64,36.44057083]
[1736772040352,36.44057083,175.79,175.7,2.849]
[1736772041658,2.5185,175.81,175.67,36.44057083]
[1736772042458,2.5185,175.81,175.7,36.44057083]
[1736772042655,2.5185,175.81,175.73,2.8485]
[1736772042965,2.5185,175.81,175.7,36.44057083]
[1736772043353,2.5185,175.81,175.76,2.848]
[1736772043655,5.1348,175.85,175.7,36.44057083]
[1736772043860,5.1348,175.85,175.73,36.44057083]
[1736772044756,44.46057083,175.92,175.79,36.44057083]
[1736772044954,49.73797083,175.92,175.79,36.44057083]
[1736772045662,41.71797083,175.92,175.79,36.44057083]
[1736772045863,49.73797083,175.92,175.76,36.44057083]
[1736772046960,8.123,175.92,175.82,36.44057083]
[1736772047551,2.6358,175.92,175.88,2.8461]
[1736772047760,39.07337083,176.01,175.85,36.44057083]
[1736772047958,36.44057083,175.92,175.78,0.0942]
[1736772048160,2.6999,175.96,175.75,97.72]
[1736772048161,36.44057083,175.89,175.75,97.72]
[1736772048457,2.6004,175.88,175.73,36.44057083]
[1736772048754,2.6004,175.88,175.71,4.0119]
[1736772048755,2.8472,175.81,175.75,2.8482]
[1736772048958,8.0,175.83,175.71,2.6364]
[1736772049161,2.5674,175.82,175.72,2.8486]
[1736772049366,2.5674,175.82,175.67,44.44057083]
[1736772049758,2.8476,175.79,175.72,2.8486]
[1736772050166,2.8476,175.79,175.67,44.44057083]
[1736772050367,2.8476,175.79,175.73,2.8485]
[1736772050968,36.44057083,175.8,175.64,36.44057083]
[1736772051162,2.6815,175.78,175.64,36.44057083]
[1736772051364,38.92717083,175.77,175.64,36.44057083]
[1736772051864,36.44057083,175.74,175.58,36.53387083]
[1736772052068,7.98,175.73,175.58,36.53387083]
[1736772052472,2.4904,175.72,175.58,36.53387083]
[1736772053068,2.8492,175.69,175.63,2.85]
[1736772053860,2.8492,175.69,175.63,2.8501]
[1736772054069,2.4904,175.72,175.63,2.8501]
[1736772054270,2.8492,175.69,175.63,2.8501]
[1736772054572,2.8492,175.69,175.64,2.8499]
[1736772055064,2.4904,175.72,175.61,2.8504]
[1736772055268,2.4904,175.72,175.58,36.44057083]
[1736772055763,2.849,175.71,175.58,36.44057083]
[1736772055971,38.93097083,175.72,175.58,36.44057083]
[1736772056171,2.8499,175.65,175.6,2.8505]
[1736772056365,36.44057083,175.69,175.56,0.25931]
[1736772056563,36.44057083,175.66,175.56,0.25931]
[1736772056867,2.6585,175.7,175.46,36.44057083]
[1736772056868,36.44057083,175.6,175.46,36.44057083]
[1736772057068,5.2536,175.59,175.46,36.44057083]
[1736772057568,2.8511,175.58,175.52,2.8519]
[1736772057868,2.851,175.58,175.52,2.8518]
[1736772058870,5.2536,175.59,175.46,36.44057083]
[1736772059465,2.8508,175.6,175.54,2.8515]
[1736772059660,36.44057083,175.63,175.49,36.44057083]